[Event "Titled Tuesday Blitz July 6 2021"]
[White "Vega Gutierrez, Sabrina"]
[Black "Donchenko, Alexander"]
[WhiteFideId "2219026"]
[BlackFideId "24603295"]
[WhiteElo "2281"]
[BlackElo "2553"]
[Result "1/2-1/2"]
[Round "01"]
[TimeControl "180+1"]
[Date "2021.07.06"]
[WhiteClock "0:00:03"]
[BlackClock "0:00:08"]

1. e4 {[%clk 0:02:55]}  c5 {[%clk 0:02:59]} 2. Nf3 {[%clk 0:02:55]}  e6 {[%clk 0:02:59]} 3. d4 {[%clk 0:02:55]}  cxd4 {[%clk 0:03:00]} 4. Nxd4 {[%clk 0:02:56]}  Nf6 {[%clk 0:03:00]} 5. Nc3 {[%clk 0:02:56]}  Nc6 {[%clk 0:03:00]} 6. Ndb5 {[%clk 0:02:56]}  Bc5 {[%clk 0:03:00]} 7. Nd6+ {[%clk 0:02:51]}  Ke7 {[%clk 0:02:56]} 8. Bf4 {[%clk 0:02:51]}  e5 {[%clk 0:02:55]} 9. Nf5+ {[%clk 0:02:50]}  Kf8 {[%clk 0:02:56]} 10. Bg5 {[%clk 0:02:50]}  h6 {[%clk 0:02:53]} 11. Be3 {[%clk 0:02:49]}  Bb4 {[%clk 0:02:51]} 12. Bc4 {[%clk 0:02:23]}  d6 {[%clk 0:02:25]} 13. O-O {[%clk 0:01:48]}  g6 {[%clk 0:02:05]} 14. Ng3 {[%clk 0:01:44]}  Bxc3 {[%clk 0:01:58]} 15. bxc3 {[%clk 0:01:44]}  Kg7 {[%clk 0:01:57]} 16. f4 {[%clk 0:01:42]}  Ng4 {[%clk 0:01:54]} 17. fxe5 {[%clk 0:01:36]}  Ncxe5 {[%clk 0:01:52]} 18. Bd4 {[%clk 0:01:36]}  Be6 {[%clk 0:01:46]} 19. Bxe6 {[%clk 0:01:33]}  fxe6 {[%clk 0:01:47]} 20. Qxg4 {[%clk 0:01:33]}  Qe7 {[%clk 0:01:37]} 21. Nh5+ {[%clk 0:01:30]}  Kh7 {[%clk 0:01:36]} 22. Bxe5 {[%clk 0:01:26]}  dxe5 {[%clk 0:01:36]} 23. Rf6 {[%clk 0:01:18]}  Rhg8 {[%clk 0:01:32]} 24. Raf1 {[%clk 0:01:14]}  Raf8 {[%clk 0:01:32]} 25. Rxf8 {[%clk 0:01:08]}  Rxf8 {[%clk 0:01:33]} 26. Rxf8 {[%clk 0:01:07]}  Qxf8 {[%clk 0:01:34]} 27. Ng3 {[%clk 0:01:06]}  Qc5+ {[%clk 0:01:33]} 28. Kf1 {[%clk 0:01:03]}  Qxc3 {[%clk 0:01:30]} 29. Qxe6 {[%clk 0:01:01]}  Qxc2 {[%clk 0:01:27]} 30. Qf7+ {[%clk 0:01:00]}  Kh8 {[%clk 0:01:27]} 31. Qf6+ {[%clk 0:00:50]}  Kh7 {[%clk 0:01:27]} 32. Qxe5 {[%clk 0:00:43]}  Qb1+ {[%clk 0:01:24]} 33. Kf2 {[%clk 0:00:42]}  Qxa2+ {[%clk 0:01:24]} 34. Ne2 {[%clk 0:00:42]}  Qf7+ {[%clk 0:01:24]} 35. Ke3 {[%clk 0:00:40]}  Qb3+ {[%clk 0:01:21]} 36. Qc3 {[%clk 0:00:40]}  Qb6+ {[%clk 0:01:20]} 37. Nd4 {[%clk 0:00:40]}  a5 {[%clk 0:01:19]} 38. e5 {[%clk 0:00:41]}  a4 {[%clk 0:01:18]} 39. e6 {[%clk 0:00:41]}  Qd6 {[%clk 0:01:17]} 40. Qa5 {[%clk 0:00:32]}  a3 {[%clk 0:01:14]} 41. Kd3 {[%clk 0:00:26]}  Qxh2 {[%clk 0:01:08]} 42. e7 {[%clk 0:00:24]}  Qg3+ {[%clk 0:01:07]} 43. Kc4 {[%clk 0:00:23]}  Qe3 {[%clk 0:00:50]} 44. Qd8 {[%clk 0:00:21]}  a2 {[%clk 0:00:46]} 45. Qd7 {[%clk 0:00:17]}  b5+ {[%clk 0:00:39]} 46. Kxb5 {[%clk 0:00:15]}  Qe5+ {[%clk 0:00:33]} 47. Kc6 {[%clk 0:00:15]}  a1=Q {[%clk 0:00:14]} 48. e8=Q+ {[%clk 0:00:14]}  Qg7 {[%clk 0:00:14]} 49. Qxg7+ {[%clk 0:00:13]}  Kxg7 {[%clk 0:00:15]} 50. Ne6+ {[%clk 0:00:13]}  Kh7 {[%clk 0:00:16]} 51. Qf7+ {[%clk 0:00:11]}  Kh8 {[%clk 0:00:16]} 52. Qe8+ {[%clk 0:00:07]}  Kh7 {[%clk 0:00:16]} 53. Nf8+ {[%clk 0:00:07]}  Kg7 {[%clk 0:00:15]} 54. Qe7+ {[%clk 0:00:07]}  Kg8 {[%clk 0:00:15]} 55. Nd7 {[%clk 0:00:04]}  Qa4+ {[%clk 0:00:15]} 56. Kc7 {[%clk 0:00:04]}  Qf4+ {[%clk 0:00:13]} 57. Kd8 {[%clk 0:00:04]}  Qf7 {[%clk 0:00:12]} 58. Nf6+ {[%clk 0:00:03]}  Kg7 {[%clk 0:00:12]} 59. Ne8+ {[%clk 0:00:03]}  Kg8 {[%clk 0:00:13]} 60. Kd7 {[%clk 0:00:02]}  Qf5+ {[%clk 0:00:11]} 61. Kd8 {[%clk 0:00:02]}  Qf7 {[%clk 0:00:09]} 62. Qxf7+ {[%clk 0:00:01]}  Kxf7 {[%clk 0:00:10]} 63. Kd7 {[%clk 0:00:02]}  g5 {[%clk 0:00:08]} 64. Nd6+ {[%clk 0:00:01]}  Kf6 {[%clk 0:00:09]} 65. Ne8+ {[%clk 0:00:01]}  Kf5 {[%clk 0:00:08]} 66. Ng7+ {[%clk 0:00:01]}  Kf4 {[%clk 0:00:08]} 67. Ke7 {[%clk 0:00:01]}  Kg3 {[%clk 0:00:08]} 68. Nf5+ {[%clk 0:00:01]}  Kxg2 {[%clk 0:00:07]} 69. Nxh6 {[%clk 0:00:02]}  Kf3 {[%clk 0:00:07]} 70. Kf6 {[%clk 0:00:03]}  Kf4 {[%clk 0:00:08]} 71. Kg6 {[%clk 0:00:03]}  g4 {[%clk 0:00:08]} 72. Nxg4 {[%clk 0:00:03]} 1/2-1/2


[Site "https://www.chess.com"]

[Event "Titled Tuesday Blitz July 6 2021"]
[White "Vignesh, N R"]
[Black "Gallegos Diaz, Carlos Alberto"]
[WhiteFideId "25012215"]
[BlackFideId "3900886"]
[WhiteElo "2401"]
[BlackElo "2362"]
[Result "1-0"]
[Round "01"]
[TimeControl "180+1"]
[Date "2021.07.06"]
[WhiteClock "0:01:21"]
[BlackClock "0:00:35"]

1. d4 {[%clk 0:02:59]}  d6 {[%clk 0:02:57]} 2. Nf3 {[%clk 0:02:59]}  Nf6 {[%clk 0:02:57]} 3. c4 {[%clk 0:02:58]}  Nbd7 {[%clk 0:02:56]} 4. g3 {[%clk 0:02:57]}  e5 {[%clk 0:02:55]} 5. Bg2 {[%clk 0:02:57]}  Be7 {[%clk 0:02:55]} 6. O-O {[%clk 0:02:56]}  O-O {[%clk 0:02:54]} 7. Nc3 {[%clk 0:02:56]}  c6 {[%clk 0:02:53]} 8. e4 {[%clk 0:02:55]}  exd4 {[%clk 0:02:52]} 9. Nxd4 {[%clk 0:02:55]}  Ne5 {[%clk 0:02:52]} 10. b3 {[%clk 0:02:55]}  Re8 {[%clk 0:02:51]} 11. h3 {[%clk 0:02:54]}  h6 {[%clk 0:02:49]} 12. f4 {[%clk 0:02:53]}  Ng6 {[%clk 0:02:48]} 13. Bb2 {[%clk 0:02:49]}  Bf8 {[%clk 0:02:47]} 14. Qd3 {[%clk 0:02:46]}  Qc7 {[%clk 0:02:43]} 15. Rae1 {[%clk 0:02:44]}  Bd7 {[%clk 0:02:41]} 16. Rd1 {[%clk 0:02:36]}  Rad8 {[%clk 0:02:40]} 17. Rfe1 {[%clk 0:02:36]}  Bc8 {[%clk 0:02:37]} 18. Kh2 {[%clk 0:02:36]}  h5 {[%clk 0:02:34]} 19. Qf3 {[%clk 0:02:34]}  h4 {[%clk 0:02:34]} 20. g4 {[%clk 0:02:34]}  a6 {[%clk 0:01:57]} 21. Nf5 {[%clk 0:02:25]}  b5 {[%clk 0:01:49]} 22. e5 {[%clk 0:02:15]}  dxe5 {[%clk 0:01:46]} 23. Qxc6 {[%clk 0:02:15]}  Qb8 {[%clk 0:01:12]} 24. Nh6+ {[%clk 0:01:45]}  gxh6 {[%clk 0:01:06]} 25. Rxd8 {[%clk 0:01:44]}  Rxd8 {[%clk 0:01:01]} 26. f5 {[%clk 0:01:33]}  Rd6 {[%clk 0:00:51]} 27. Qf3 {[%clk 0:01:28]}  e4 {[%clk 0:00:47]} 28. Qf1 {[%clk 0:01:22]}  Rd2+ {[%clk 0:00:41]} 29. Kh1 {[%clk 0:01:23]}  Rxb2 {[%clk 0:00:39]} 30. fxg6 {[%clk 0:01:22]}  Qg3 {[%clk 0:00:35]} 31. Nxe4 {[%clk 0:01:22]}  Nxe4 {[%clk 0:00:35]} 32. Qxf7+ {[%clk 0:01:21]} 1-0


[Site "https://www.chess.com"]

[Event "Titled Tuesday Blitz July 6 2021"]
[White "Vovk, Orest"]
[Black "Kukhmazov, Arsen"]
[WhiteFideId "14113490"]
[BlackFideId "24108260"]
[WhiteElo "2203"]
[BlackElo "2453"]
[Result "0-1"]
[Round "01"]
[TimeControl "180+1"]
[Date "2021.07.06"]
[WhiteClock "0:00:05"]
[BlackClock "0:00:22"]

1. h3 {[%clk 0:03:00]}  d5 {[%clk 0:02:51]} 2. e4 {[%clk 0:02:46]}  dxe4 {[%clk 0:02:51]} 3. Nc3 {[%clk 0:02:45]}  Nf6 {[%clk 0:02:51]} 4. Qe2 {[%clk 0:02:45]}  Nc6 {[%clk 0:02:42]} 5. Nxe4 {[%clk 0:02:43]}  Nxe4 {[%clk 0:02:39]} 6. Qxe4 {[%clk 0:02:40]}  g6 {[%clk 0:02:37]} 7. Bb5 {[%clk 0:02:33]}  Bd7 {[%clk 0:02:38]} 8. Nf3 {[%clk 0:02:32]}  Bg7 {[%clk 0:02:38]} 9. d3 {[%clk 0:02:32]}  a6 {[%clk 0:02:37]} 10. Bc4 {[%clk 0:02:31]}  O-O {[%clk 0:02:37]} 11. Qh4 {[%clk 0:02:27]}  b5 {[%clk 0:02:32]} 12. Bb3 {[%clk 0:02:26]}  Na5 {[%clk 0:02:00]} 13. Bh6 {[%clk 0:02:25]}  Nxb3 {[%clk 0:01:44]} 14. axb3 {[%clk 0:02:22]}  Re8 {[%clk 0:01:15]} 15. Bxg7 {[%clk 0:02:16]}  Kxg7 {[%clk 0:01:15]} 16. O-O {[%clk 0:02:10]}  Bc6 {[%clk 0:01:14]} 17. Ne5 {[%clk 0:02:06]}  Qd5 {[%clk 0:01:14]} 18. Nxc6 {[%clk 0:02:04]}  Qxc6 {[%clk 0:01:15]} 19. c3 {[%clk 0:02:01]}  Rad8 {[%clk 0:01:15]} 20. d4 {[%clk 0:02:00]}  Rd5 {[%clk 0:01:09]} 21. b4 {[%clk 0:01:57]}  Rh5 {[%clk 0:01:08]} 22. Qg3 {[%clk 0:01:57]}  Rd8 {[%clk 0:00:59]} 23. Rfe1 {[%clk 0:01:55]}  Rdd5 {[%clk 0:00:59]} 24. f4 {[%clk 0:01:47]}  e6 {[%clk 0:00:49]} 25. Re5 {[%clk 0:01:42]}  f6 {[%clk 0:00:42]} 26. Rxd5 {[%clk 0:01:34]}  Rxd5 {[%clk 0:00:43]} 27. Qf3 {[%clk 0:01:32]}  Rd6 {[%clk 0:00:42]} 28. Qxc6 {[%clk 0:01:30]}  Rxc6 {[%clk 0:00:43]} 29. Kf2 {[%clk 0:01:31]}  Kf7 {[%clk 0:00:43]} 30. Ke3 {[%clk 0:01:31]}  Ke7 {[%clk 0:00:44]} 31. g4 {[%clk 0:01:31]}  Kd6 {[%clk 0:00:44]} 32. Ke4 {[%clk 0:01:31]}  Kd7 {[%clk 0:00:39]} 33. f5 {[%clk 0:01:29]}  exf5+ {[%clk 0:00:37]} 34. gxf5 {[%clk 0:01:29]}  g5 {[%clk 0:00:36]} 35. h4 {[%clk 0:01:29]}  h6 {[%clk 0:00:36]} 36. hxg5 {[%clk 0:01:27]}  hxg5 {[%clk 0:00:37]} 37. Rh1 {[%clk 0:01:26]}  Rd6 {[%clk 0:00:37]} 38. d5 {[%clk 0:01:16]}  Kc8 {[%clk 0:00:38]} 39. Rh8+ {[%clk 0:01:13]}  Kb7 {[%clk 0:00:38]} 40. Rf8 {[%clk 0:01:10]}  Kb6 {[%clk 0:00:38]} 41. Rb8+ {[%clk 0:00:59]}  Ka7 {[%clk 0:00:38]} 42. Re8 {[%clk 0:00:58]}  Kb6 {[%clk 0:00:38]} 43. Rf8 {[%clk 0:00:49]}  a5 {[%clk 0:00:37]} 44. Rb8+ {[%clk 0:00:46]}  Ka7 {[%clk 0:00:38]} 45. Rxb5 {[%clk 0:00:45]}  axb4 {[%clk 0:00:37]} 46. Rxb4 {[%clk 0:00:45]}  Ra6 {[%clk 0:00:35]} 47. Rc4 {[%clk 0:00:43]}  Kb7 {[%clk 0:00:35]} 48. b4 {[%clk 0:00:38]}  Kc8 {[%clk 0:00:12]} 49. Rc6 {[%clk 0:00:17]}  Rxc6 {[%clk 0:00:12]} 50. dxc6 {[%clk 0:00:17]}  Kd8 {[%clk 0:00:13]} 51. c4 {[%clk 0:00:17]}  Ke7 {[%clk 0:00:13]} 52. c5 {[%clk 0:00:17]}  Kd8 {[%clk 0:00:13]} 53. b5 {[%clk 0:00:17]}  Kc8 {[%clk 0:00:14]} 54. b6 {[%clk 0:00:17]}  Kb8 {[%clk 0:00:14]} 55. Kd5 {[%clk 0:00:14]}  Kc8 {[%clk 0:00:15]} 56. Ke4 {[%clk 0:00:08]}  Kb8 {[%clk 0:00:15]} 57. Kd4 {[%clk 0:00:08]}  Kc8 {[%clk 0:00:15]} 58. b7+ {[%clk 0:00:08]}  Kb8 {[%clk 0:00:16]} 59. Ke3 {[%clk 0:00:07]}  Ka7 {[%clk 0:00:16]} 60. Kf2 {[%clk 0:00:07]}  Kb8 {[%clk 0:00:16]} 61. Kf3 {[%clk 0:00:06]}  Ka7 {[%clk 0:00:17]} 62. Kg4 {[%clk 0:00:07]}  Kb8 {[%clk 0:00:18]} 63. Kh5 {[%clk 0:00:07]}  Ka7 {[%clk 0:00:19]} 64. Kg6 {[%clk 0:00:06]}  g4 {[%clk 0:00:19]} 65. Kxf6 {[%clk 0:00:07]}  g3 {[%clk 0:00:20]} 66. Ke7 {[%clk 0:00:07]}  g2 {[%clk 0:00:21]} 67. Kd7 {[%clk 0:00:07]}  g1=Q {[%clk 0:00:20]} 68. Kxc7 {[%clk 0:00:08]}  Qg3+ {[%clk 0:00:20]} 69. Kd7 {[%clk 0:00:08]}  Kb8 {[%clk 0:00:21]} 70. f6 {[%clk 0:00:07]}  Qc7+ {[%clk 0:00:21]} 71. Ke6 {[%clk 0:00:06]}  Qxc6+ {[%clk 0:00:22]} 72. Ke7 {[%clk 0:00:05]}  Qxc5+ {[%clk 0:00:23]} 73. Ke8 {[%clk 0:00:05]}  Qc6+ {[%clk 0:00:22]} 74. Kf7 {[%clk 0:00:05]}  Qxb7+ {[%clk 0:00:23]} 75. Kg8 {[%clk 0:00:05]}  Qc8+ {[%clk 0:00:21]} 76. Kg7 {[%clk 0:00:05]}  Qg4+ {[%clk 0:00:22]} 77. Kh7 {[%clk 0:00:05]}  Qf5+ {[%clk 0:00:21]} 78. Kg7 {[%clk 0:00:05]}  Qg5+ {[%clk 0:00:22]} 79. Kf7 {[%clk 0:00:05]}  Kc7 {[%clk 0:00:22]} 80. Ke7 {[%clk 0:00:05]}  Qe5+ {[%clk 0:00:22]} 81. Kf7 {[%clk 0:00:06]}  Kd7 {[%clk 0:00:22]} 82. Kg6 {[%clk 0:00:04]}  Ke6 {[%clk 0:00:20]} 83. f7 {[%clk 0:00:04]}  Qf5+ {[%clk 0:00:21]} 84. Kg7 {[%clk 0:00:04]}  Qxf7+ {[%clk 0:00:21]} 85. Kh8 {[%clk 0:00:05]}  Qe7 {[%clk 0:00:22]} 0-1


[Site "https://www.chess.com"]

[Event "Titled Tuesday Blitz July 6 2021"]
[White "Vykouk, Jan"]
[Black "Jodorcovsky Werjivker, Paulo"]
[WhiteFideId "349658"]
[BlackFideId "3700305"]
[WhiteElo "2387"]
[BlackElo "2142"]
[Result "1-0"]
[Round "01"]
[TimeControl "180+1"]
[Date "2021.07.06"]
[WhiteClock "0:00:56"]
[BlackClock "0:00:05"]

1. e4 {[%clk 0:03:00]}  c5 {[%clk 0:02:58]} 2. Nf3 {[%clk 0:03:00]}  Nc6 {[%clk 0:02:58]} 3. d4 {[%clk 0:03:01]}  cxd4 {[%clk 0:02:59]} 4. Nxd4 {[%clk 0:03:02]}  Nf6 {[%clk 0:02:59]} 5. Nc3 {[%clk 0:03:02]}  e5 {[%clk 0:02:59]} 6. Ndb5 {[%clk 0:03:03]}  d6 {[%clk 0:02:59]} 7. Bg5 {[%clk 0:03:02]}  a6 {[%clk 0:02:59]} 8. Na3 {[%clk 0:03:03]}  b5 {[%clk 0:02:58]} 9. Nd5 {[%clk 0:03:04]}  Be7 {[%clk 0:02:58]} 10. Bxf6 {[%clk 0:03:04]}  Bxf6 {[%clk 0:02:59]} 11. c4 {[%clk 0:03:05]}  b4 {[%clk 0:02:59]} 12. Nc2 {[%clk 0:03:06]}  O-O {[%clk 0:02:59]} 13. g3 {[%clk 0:03:06]}  Bg5 {[%clk 0:02:56]} 14. Bg2 {[%clk 0:03:06]}  Qa5 {[%clk 0:02:56]} 15. O-O {[%clk 0:03:06]}  Qc5 {[%clk 0:02:56]} 16. Qd3 {[%clk 0:03:00]}  a5 {[%clk 0:02:54]} 17. Kh1 {[%clk 0:02:59]}  Kh8 {[%clk 0:02:47]} 18. f4 {[%clk 0:02:58]}  Bh6 {[%clk 0:02:42]} 19. Rad1 {[%clk 0:02:53]}  Ra7 {[%clk 0:02:37]} 20. Nde3 {[%clk 0:02:35]}  Rd7 {[%clk 0:02:28]} 21. b3 {[%clk 0:02:34]}  Ne7 {[%clk 0:02:16]} 22. Bh3 {[%clk 0:02:27]}  Rdd8 {[%clk 0:02:04]} 23. Bxc8 {[%clk 0:02:26]}  Nxc8 {[%clk 0:02:04]} 24. Nf5 {[%clk 0:02:25]}  exf4 {[%clk 0:01:38]} 25. gxf4 {[%clk 0:02:22]}  Qc6 {[%clk 0:01:24]} 26. Nce3 {[%clk 0:02:18]}  Rfe8 {[%clk 0:01:21]} 27. Nd5 {[%clk 0:02:16]}  Re6 {[%clk 0:01:13]} 28. Rg1 {[%clk 0:01:52]}  Nb6 {[%clk 0:01:07]} 29. Nxh6 {[%clk 0:01:48]}  Rxh6 {[%clk 0:01:04]} 30. Qd4 {[%clk 0:01:48]}  f6 {[%clk 0:00:34]} 31. Qxb6 {[%clk 0:01:46]}  Qe8 {[%clk 0:00:35]} 32. Qe3 {[%clk 0:01:37]}  Qh5 {[%clk 0:00:34]} 33. Qg3 {[%clk 0:01:27]}  Rg6 {[%clk 0:00:31]} 34. Qf2 {[%clk 0:01:26]}  Rh6 {[%clk 0:00:28]} 35. Rd3 {[%clk 0:01:15]}  Re8 {[%clk 0:00:27]} 36. Rdg3 {[%clk 0:01:10]}  Rg8 {[%clk 0:00:18]} 37. h3 {[%clk 0:01:05]}  Qe8 {[%clk 0:00:17]} 38. Qf3 {[%clk 0:01:04]}  Qd7 {[%clk 0:00:16]} 39. f5 {[%clk 0:01:03]}  Rh4 {[%clk 0:00:13]} 40. Nf4 {[%clk 0:01:01]}  g6 {[%clk 0:00:07]} 41. fxg6 {[%clk 0:00:59]}  hxg6 {[%clk 0:00:08]} 42. Rg4 {[%clk 0:00:56]}  g5 {[%clk 0:00:07]} 43. Rxh4+ {[%clk 0:00:56]}  gxh4 {[%clk 0:00:07]} 44. Qh5+ {[%clk 0:00:56]}  Qh7 {[%clk 0:00:06]} 45. Ng6+ {[%clk 0:00:55]}  Rxg6 {[%clk 0:00:06]} 46. Qxg6 {[%clk 0:00:56]}  Qxg6 {[%clk 0:00:04]} 47. Rxg6 {[%clk 0:00:56]}  Kh7 {[%clk 0:00:05]} 1-0


[Site "https://www.chess.com"]

[Event "Titled Tuesday Blitz July 6 2021"]
[White "Zubritskiy, Artyom"]
[Black "Region_07"]
[WhiteFideId "4181247"]
[WhiteElo "2559"]
[BlackElo "2348"]
[Result "1-0"]
[Round "01"]
[TimeControl "180+1"]
[Date "2021.07.06"]
[WhiteClock "0:00:22"]
[BlackClock "0:00:04"]

1. d4 {[%clk 0:02:58]}  d5 {[%clk 0:02:19]} 2. c4 {[%clk 0:02:58]}  Nc6 {[%clk 0:02:17]} 3. Nc3 {[%clk 0:02:57]}  dxc4 {[%clk 0:02:13]} 4. Nf3 {[%clk 0:02:55]}  Bg4 {[%clk 0:02:06]} 5. d5 {[%clk 0:02:55]}  Bxf3 {[%clk 0:02:03]} 6. exf3 {[%clk 0:02:55]}  Na5 {[%clk 0:01:56]} 7. Qa4+ {[%clk 0:02:10]}  c6 {[%clk 0:01:56]} 8. b4 {[%clk 0:02:09]}  cxb3 {[%clk 0:01:43]} 9. axb3 {[%clk 0:02:09]}  e6 {[%clk 0:01:00]} 10. b4 {[%clk 0:01:16]}  exd5 {[%clk 0:00:49]} 11. bxa5 {[%clk 0:01:12]}  Nf6 {[%clk 0:00:40]} 12. Bd3 {[%clk 0:01:04]}  Be7 {[%clk 0:00:31]} 13. O-O {[%clk 0:01:04]}  O-O {[%clk 0:00:31]} 14. Rb1 {[%clk 0:01:04]}  Nd7 {[%clk 0:00:29]} 15. Be3 {[%clk 0:00:50]}  Qc7 {[%clk 0:00:23]} 16. Rfc1 {[%clk 0:00:40]}  Nc5 {[%clk 0:00:17]} 17. Bxc5 {[%clk 0:00:31]}  Bxc5 {[%clk 0:00:18]} 18. Qc2 {[%clk 0:00:25]}  Qf4 {[%clk 0:00:06]} 19. Ne2 {[%clk 0:00:22]}  Qh4 {[%clk 0:00:04]} 20. Qxc5 {[%clk 0:00:22]} 1-0


[Site "https://www.chess.com"]

[Event "Titled Tuesday Blitz July 6 2021"]
[White "Akhvlediani, Irakli"]
[Black "Tokman, Ariel"]
[WhiteFideId "13601938"]
[BlackFideId "117420"]
[WhiteElo "2226"]
[BlackElo "2345"]
[Result "1-0"]
[Round "02"]
[TimeControl "180+1"]
[Date "2021.07.06"]
[WhiteClock "0:00:12"]
[BlackClock "0:00:15"]

1. Nf3 {[%clk 0:03:00]}  c5 {[%clk 0:02:58]} 2. e4 {[%clk 0:03:00]}  e6 {[%clk 0:02:56]} 3. c3 {[%clk 0:03:00]}  Nf6 {[%clk 0:02:56]} 4. e5 {[%clk 0:03:00]}  Nd5 {[%clk 0:02:56]} 5. d4 {[%clk 0:03:01]}  cxd4 {[%clk 0:02:57]} 6. Qxd4 {[%clk 0:03:02]}  Nc6 {[%clk 0:02:56]} 7. Qe4 {[%clk 0:03:02]}  d6 {[%clk 0:02:51]} 8. Nbd2 {[%clk 0:03:01]}  dxe5 {[%clk 0:02:50]} 9. Nxe5 {[%clk 0:03:02]}  Nxe5 {[%clk 0:02:50]} 10. Qxe5 {[%clk 0:03:03]}  Qc7 {[%clk 0:02:42]} 11. Bb5+ {[%clk 0:03:02]}  Bd7 {[%clk 0:02:41]} 12. Qxc7 {[%clk 0:03:01]}  Nxc7 {[%clk 0:02:41]} 13. Bxd7+ {[%clk 0:03:02]}  Kxd7 {[%clk 0:02:42]} 14. O-O {[%clk 0:03:02]}  Be7 {[%clk 0:02:41]} 15. Nc4 {[%clk 0:03:01]}  Rhd8 {[%clk 0:02:38]} 16. Bf4 {[%clk 0:02:42]}  Nd5 {[%clk 0:02:34]} 17. Be5 {[%clk 0:02:40]}  f6 {[%clk 0:02:28]} 18. Bg3 {[%clk 0:02:39]}  Rac8 {[%clk 0:02:25]} 19. Nd2 {[%clk 0:02:34]}  Bd6 {[%clk 0:02:19]} 20. Bxd6 {[%clk 0:02:33]}  Kxd6 {[%clk 0:02:20]} 21. Rfd1 {[%clk 0:02:33]}  Ke7 {[%clk 0:02:16]} 22. g3 {[%clk 0:02:31]}  Rd7 {[%clk 0:02:11]} 23. Ne4 {[%clk 0:02:26]}  b6 {[%clk 0:02:06]} 24. Rd2 {[%clk 0:02:19]}  Rcd8 {[%clk 0:02:05]} 25. Rad1 {[%clk 0:02:17]}  Nc7 {[%clk 0:02:02]} 26. Kf1 {[%clk 0:02:17]}  Rxd2 {[%clk 0:02:01]} 27. Rxd2 {[%clk 0:02:18]}  Rxd2 {[%clk 0:02:01]} 28. Nxd2 {[%clk 0:02:19]}  e5 {[%clk 0:02:02]} 29. Ke2 {[%clk 0:02:19]}  Ke6 {[%clk 0:02:02]} 30. Kd3 {[%clk 0:02:20]}  f5 {[%clk 0:02:00]} 31. f3 {[%clk 0:02:16]}  Na6 {[%clk 0:01:51]} 32. b4 {[%clk 0:02:11]}  Nc7 {[%clk 0:01:48]} 33. c4 {[%clk 0:02:11]}  Kd6 {[%clk 0:01:47]} 34. Nb1 {[%clk 0:01:58]}  Ne6 {[%clk 0:01:45]} 35. Nc3 {[%clk 0:01:58]}  Nd4 {[%clk 0:01:35]} 36. f4 {[%clk 0:01:58]}  Nf3 {[%clk 0:01:36]} 37. Nb5+ {[%clk 0:01:45]}  Ke6 {[%clk 0:01:35]} 38. fxe5 {[%clk 0:01:43]}  Nxe5+ {[%clk 0:01:34]} 39. Kc3 {[%clk 0:01:43]}  Nc6 {[%clk 0:01:27]} 40. Nd4+ {[%clk 0:01:24]}  Nxd4 {[%clk 0:01:26]} 41. Kxd4 {[%clk 0:01:25]}  Kd6 {[%clk 0:01:22]} 42. h4 {[%clk 0:01:14]}  g6 {[%clk 0:01:20]} 43. a3 {[%clk 0:00:39]}  h6 {[%clk 0:01:19]} 44. c5+ {[%clk 0:00:29]}  bxc5+ {[%clk 0:01:19]} 45. bxc5+ {[%clk 0:00:30]}  Ke6 {[%clk 0:00:57]} 46. c6 {[%clk 0:00:22]}  g5 {[%clk 0:00:57]} 47. Kc5 {[%clk 0:00:09]}  f4 {[%clk 0:00:21]} 48. gxf4 {[%clk 0:00:08]}  gxf4 {[%clk 0:00:22]} 49. Kd4 {[%clk 0:00:09]}  Kd6 {[%clk 0:00:19]} 50. Ke4 {[%clk 0:00:09]}  Kxc6 {[%clk 0:00:17]} 51. Kxf4 {[%clk 0:00:10]}  a5 {[%clk 0:00:14]} 52. Kf5 {[%clk 0:00:10]}  a4 {[%clk 0:00:14]} 53. Kg6 {[%clk 0:00:10]}  Kc5 {[%clk 0:00:15]} 54. Kxh6 {[%clk 0:00:11]}  Kc4 {[%clk 0:00:16]} 55. Kg5 {[%clk 0:00:09]}  Kb3 {[%clk 0:00:16]} 56. h5 {[%clk 0:00:10]}  Kxa3 {[%clk 0:00:17]} 57. h6 {[%clk 0:00:11]}  Kb3 {[%clk 0:00:14]} 58. h7 {[%clk 0:00:11]}  a3 {[%clk 0:00:15]} 59. h8=Q {[%clk 0:00:12]}  a2 {[%clk 0:00:15]} 60. Qa1 {[%clk 0:00:12]} 1-0


[Site "https://www.chess.com"]

[Event "Titled Tuesday Blitz July 6 2021"]
[White "Alekseenko, Kirill"]
[Black "Gedajlovic, Max"]
[WhiteFideId "4135539"]
[BlackFideId "2616840"]
[WhiteElo "2580"]
[BlackElo "2137"]
[Result "1-0"]
[Round "02"]
[TimeControl "180+1"]
[Date "2021.07.06"]
[WhiteClock "0:01:24"]
[BlackClock "0:01:45"]

1. d4 {[%clk 0:03:00]}  Nf6 {[%clk 0:02:56]} 2. Nc3 {[%clk 0:03:01]}  d5 {[%clk 0:02:56]} 3. Bf4 {[%clk 0:03:01]}  c6 {[%clk 0:02:56]} 4. e3 {[%clk 0:03:02]}  Bf5 {[%clk 0:02:56]} 5. f3 {[%clk 0:03:02]}  h6 {[%clk 0:02:55]} 6. g4 {[%clk 0:03:03]}  Bh7 {[%clk 0:02:55]} 7. h4 {[%clk 0:03:03]}  e6 {[%clk 0:02:52]} 8. Bd3 {[%clk 0:03:03]}  Bxd3 {[%clk 0:02:51]} 9. Qxd3 {[%clk 0:03:04]}  Nbd7 {[%clk 0:02:51]} 10. Nge2 {[%clk 0:03:05]}  c5 {[%clk 0:02:50]} 11. a3 {[%clk 0:02:53]}  Qb6 {[%clk 0:02:47]} 12. O-O-O {[%clk 0:02:49]}  Rc8 {[%clk 0:02:42]} 13. g5 {[%clk 0:02:26]}  Nh5 {[%clk 0:02:41]} 14. Bh2 {[%clk 0:02:19]}  g6 {[%clk 0:02:38]} 15. e4 {[%clk 0:02:15]}  cxd4 {[%clk 0:02:36]} 16. Nxd4 {[%clk 0:02:12]}  Nc5 {[%clk 0:02:28]} 17. Qb5+ {[%clk 0:02:00]}  Qxb5 {[%clk 0:02:26]} 18. Ndxb5 {[%clk 0:02:01]}  dxe4 {[%clk 0:02:24]} 19. Nc7+ {[%clk 0:01:53]}  Rxc7 {[%clk 0:02:24]} 20. Bxc7 {[%clk 0:01:53]}  Be7 {[%clk 0:02:17]} 21. Be5 {[%clk 0:01:49]}  Rh7 {[%clk 0:02:11]} 22. fxe4 {[%clk 0:01:29]}  hxg5 {[%clk 0:02:10]} 23. hxg5 {[%clk 0:01:29]}  Bxg5+ {[%clk 0:02:10]} 24. Kb1 {[%clk 0:01:30]}  Bf6 {[%clk 0:01:55]} 25. Bxf6 {[%clk 0:01:27]}  Nxf6 {[%clk 0:01:55]} 26. Rxh7 {[%clk 0:01:27]}  Nxh7 {[%clk 0:01:56]} 27. b4 {[%clk 0:01:27]}  Nd7 {[%clk 0:01:55]} 28. Nb5 {[%clk 0:01:28]}  a5 {[%clk 0:01:48]} 29. Nd6+ {[%clk 0:01:27]}  Ke7 {[%clk 0:01:48]} 30. bxa5 {[%clk 0:01:24]}  Nc5 {[%clk 0:01:46]} 31. Nxb7 {[%clk 0:01:23]}  Nxb7 {[%clk 0:01:45]} 32. a6 {[%clk 0:01:24]} 1-0


[Site "https://www.chess.com"]